[Event "*** Titled Tuesday Blitz"]
[Site "Chess.com"]
[Date "2018.05.01"]
[Round "4"]
[White "Synctel"]
[Black "Alohamora11"]
[Result "0-1"]
[WhiteElo "1903"]
[BlackElo "2115"]
[TimeControl "180+2"]
[EndTime "13:51:58 PDT"]
[Termination "Alohamora11 won by resignation"]

1. e4 {[%clk 0:03:01.9]} 1... c5 {[%clk 0:02:59.9]} 2. Nc3 {[%clk 0:03:00.5]}
2... g6 {[%clk 0:03:00.6]} 3. f4 {[%clk 0:02:57.4]} 3... Bg7 {[%clk 0:02:58.3]}
4. Nf3 {[%clk 0:02:55.8]} 4... e6 {[%clk 0:02:59]} 5. Nb5 {[%clk 0:02:21.9]}
5... d6 {[%clk 0:01:57.8]} 6. e5 {[%clk 0:02:17.3]} 6... dxe5 {[%clk 0:01:56.7]}
7. fxe5 {[%clk 0:02:17.7]} 7... Bf8 {[%clk 0:01:48.5]} 8. d4 {[%clk 0:01:54.6]}
8... a6 {[%clk 0:01:45.7]} 9. Nc3 {[%clk 0:01:54.3]} 9... cxd4 {[%clk
0:01:40.4]} 10. Qxd4 {[%clk 0:01:53.7]} 10... Qxd4 {[%clk 0:01:39.4]} 11. Nxd4
{[%clk 0:01:55.6]} 11... Bg7 {[%clk 0:01:39.1]} 12. Bf4 {[%clk 0:01:54.2]} 12...
Ne7 {[%clk 0:01:39.7]} 13. O-O-O {[%clk 0:01:30.4]} 13... Nbc6 {[%clk
0:01:39.3]} 14. Nf3 {[%clk 0:00:57.7]} 14... O-O {[%clk 0:01:37.3]} 15. Bc4
{[%clk 0:00:52.9]} 15... b5 {[%clk 0:01:37.4]} 16. Bb3 {[%clk 0:00:53.4]} 16...
h6 {[%clk 0:01:15.3]} 17. h3 {[%clk 0:00:38.4]} 17... g5 {[%clk 0:01:15.9]} 18.
Bh2 {[%clk 0:00:37.2]} 18... Ng6 {[%clk 0:01:17]} 19. Rhe1 {[%clk 0:00:33.3]}
19... Rd8 {[%clk 0:01:17.5]} 20. Rxd8+ {[%clk 0:00:33]} 20... Nxd8 {[%clk
0:01:19.4]} 21. Ne4 {[%clk 0:00:33.5]} 21... Nc6 {[%clk 0:01:15.8]} 22. Nd6
{[%clk 0:00:16.4]} 22... Bd7 {[%clk 0:01:15]} 23. c4 {[%clk 0:00:09.1]} 23...
bxc4 {[%clk 0:01:13.2]} 24. Bxc4 {[%clk 0:00:11]} 24... Na5 {[%clk 0:01:05.8]}
25. Bd3 {[%clk 0:00:10.8]} 25... Ne7 {[%clk 0:00:59.4]} 26. Nd4 {[%clk
0:00:08.5]} 26... Nd5 {[%clk 0:00:59.6]} 27. Be4 {[%clk 0:00:05.5]} 27... Nc6
{[%clk 0:00:56.9]} 28. Nxc6 {[%clk 0:00:05.8]} 28... Bxc6 {[%clk 0:00:58.8]} 29.
Rf1 {[%clk 0:00:07]} 29... Ra7 {[%clk 0:00:52.6]} 30. a3 {[%clk 0:00:06.5]}
30... Rc7 {[%clk 0:00:50.2]} 31. Kb1 {[%clk 0:00:06.5]} 31... Ne3 {[%clk
0:00:44.7]} 32. Bxc6 {[%clk 0:00:07.1]} 32... Nxf1 {[%clk 0:00:44.6]} 33. Bb7
{[%clk 0:00:02.7]} 33... Nxh2 {[%clk 0:00:44.4]} 0-1

[Event "*** Titled Tuesday Blitz"]
[Site "Chess.com"]
[Date "2018.05.01"]
[Round "4"]
[White "dolynachess"]
[Black "rasmussvane"]
[Result "1/2-1/2"]
[WhiteElo "2372"]
[BlackElo "2596"]
[TimeControl "180+2"]
[EndTime "13:52:02 PDT"]
[Termination "Game drawn by repetition"]

1. d4 {[%clk 0:03:01.9]} 1... d5 {[%clk 0:02:58.3]} 2. c4 {[%clk 0:03:01]} 2...
c6 {[%clk 0:02:54.9]} 3. Nc3 {[%clk 0:03:00.7]} 3... Nf6 {[%clk 0:02:55.6]} 4.
Nf3 {[%clk 0:03:01.7]} 4... dxc4 {[%clk 0:02:56.3]} 5. a4 {[%clk 0:03:02.5]}
5... e6 {[%clk 0:02:57.6]} 6. g3 {[%clk 0:03:02.7]} 6... c5 {[%clk 0:02:52.1]}
7. e4 {[%clk 0:02:52.9]} 7... cxd4 {[%clk 0:02:36.1]} 8. Qxd4 {[%clk 0:02:47]}
8... Qxd4 {[%clk 0:02:36.6]} 9. Nxd4 {[%clk 0:02:48.9]} 9... Bc5 {[%clk
0:02:34.5]} 10. Ndb5 {[%clk 0:02:48.8]} 10... Kd8 {[%clk 0:02:23.2]} 11. Bf4
{[%clk 0:02:41.1]} 11... a6 {[%clk 0:02:21.3]} 12. O-O-O+ {[%clk 0:02:15.1]}
12... Bd7 {[%clk 0:02:17.6]} 13. Nc7 {[%clk 0:01:59.5]} 13... Ra7 {[%clk
0:01:57.9]} 14. Nxe6+ {[%clk 0:02:00]} 14... fxe6 {[%clk 0:01:58]} 15. Bxb8
{[%clk 0:02:01.9]} 15... Ra8 {[%clk 0:01:59.2]} 16. Bf4 {[%clk 0:02:02.3]} 16...
Ng4 {[%clk 0:01:38.4]} 17. Bxc4 {[%clk 0:01:57.2]} 17... Ke8 {[%clk 0:01:30.9]}
18. Bd6 {[%clk 0:01:34.7]} 18... Nxf2 {[%clk 0:01:17.3]} 19. Bxc5 {[%clk
0:01:34.4]} 19... Nxd1 {[%clk 0:01:18.7]} 20. Rxd1 {[%clk 0:01:28.2]} 20... Rc8
{[%clk 0:01:19.8]} 21. b4 {[%clk 0:01:22.3]} 21... a5 {[%clk 0:01:19.5]} 22. Nb5
{[%clk 0:01:14.9]} 22... Bxb5 {[%clk 0:00:48.8]} 23. Bxb5+ {[%clk 0:01:15.4]}
23... Kf7 {[%clk 0:00:50.3]} 24. Rd7+ {[%clk 0:01:11.3]} 24... Kg6 {[%clk
0:00:51.5]} 25. Kb2 {[%clk 0:01:08.8]} 25... b6 {[%clk 0:00:43.2]} 26. Bd4
{[%clk 0:01:04.3]} 26... axb4 {[%clk 0:00:41.4]} 27. Rxg7+ {[%clk 0:01:03.2]}
27... Kh6 {[%clk 0:00:42.9]} 28. Re7 {[%clk 0:00:55.2]} 28... Rhd8 {[%clk
0:00:43.9]} 29. Rxe6+ {[%clk 0:00:56.1]} 29... Kg5 {[%clk 0:00:45.3]} 30. Bxb6
{[%clk 0:00:52.1]} 30... Rd1 {[%clk 0:00:41.1]} 31. a5 {[%clk 0:00:44.7]} 31...
Rc3 {[%clk 0:00:39.9]} 32. Rc6 {[%clk 0:00:33.2]} 32... Rd2+ {[%clk 0:00:40.6]}
33. Kb1 {[%clk 0:00:34.5]} 33... Rd1+ {[%clk 0:00:38.8]} 34. Kb2 {[%clk
0:00:35.8]} 34... Rd2+ {[%clk 0:00:39.1]} 35. Kb1 {[%clk 0:00:37]} 35... Rd1+
{[%clk 0:00:30.8]} 36. Ka2 {[%clk 0:00:35.7]} 36... Rd2+ {[%clk 0:00:22.1]} 37.
Kb1 {[%clk 0:00:36.6]} 37... Rd1+ {[%clk 0:00:22.9]} 38. Kb2 {[%clk 0:00:38]}
38... Rd2+ {[%clk 0:00:22.7]} 39. Kb1 {[%clk 0:00:39.4]} 39... Rd1+ {[%clk
0:00:23.8]} 40. Ka2 {[%clk 0:00:40.8]} 40... Rd2+ {[%clk 0:00:16.3]} 41. Kb1
{[%clk 0:00:41.7]} 1/2-1/2

[Event "*** Titled Tuesday Blitz"]
[Site "Chess.com"]
[Date "2018.05.01"]
[Round "4"]
[White "NormWeinstein"]
[Black "Yurovskykh_Oleksandr"]
[Result "1-0"]
[WhiteElo "2299"]
[BlackElo "2344"]
[TimeControl "180+2"]
[EndTime "13:52:09 PDT"]
[Termination "NormWeinstein won by resignation"]

1. e4 {[%clk 0:02:37.7]} 1... d5 {[%clk 0:02:59]} 2. exd5 {[%clk 0:02:36.4]}
2... Qxd5 {[%clk 0:03:00.9]} 3. Nf3 {[%clk 0:02:37.2]} 3... Bg4 {[%clk
0:03:00.7]} 4. Be2 {[%clk 0:02:37.5]} 4... Nc6 {[%clk 0:03:01.4]} 5. d3 {[%clk
0:02:38.5]} 5... e6 {[%clk 0:02:50.6]} 6. Nbd2 {[%clk 0:02:38.6]} 6... O-O-O
{[%clk 0:02:51.1]} 7. Nc4 {[%clk 0:02:38.7]} 7... Nge7 {[%clk 0:02:51.7]} 8. Ne3
{[%clk 0:02:38.4]} 8... Qh5 {[%clk 0:02:43]} 9. Nxg4 {[%clk 0:02:35.8]} 9...
Qxg4 {[%clk 0:02:44.9]} 10. O-O {[%clk 0:02:15]} 10... Qb4 {[%clk 0:02:37.7]}
11. c3 {[%clk 0:02:14.7]} 11... Qd6 {[%clk 0:02:38.2]} 12. Ng5 {[%clk
0:02:12.8]} 12... Ne5 {[%clk 0:02:36]} 13. d4 {[%clk 0:01:51.9]} 13... h6 {[%clk
0:02:36.4]} 14. dxe5 {[%clk 0:01:50.1]} 14... Qxd1 {[%clk 0:02:36.6]} 15. Rxd1
{[%clk 0:01:50.8]} 15... Rxd1+ {[%clk 0:02:37]} 16. Bxd1 {[%clk 0:01:51.7]}
16... hxg5 {[%clk 0:02:38.6]} 17. Bxg5 {[%clk 0:01:52.4]} 17... Nc6 {[%clk
0:02:36.9]} 18. Bf4 {[%clk 0:01:50.7]} 18... Bc5 {[%clk 0:02:37]} 19. Bf3 {[%clk
0:01:50.2]} 19... Ne7 {[%clk 0:02:36.9]} 20. h3 {[%clk 0:01:45.4]} 20... Ng6
{[%clk 0:02:35.7]} 21. Bg3 {[%clk 0:01:46.1]} 21... Rd8 {[%clk 0:02:33.6]} 22.
Rd1 {[%clk 0:01:43.2]} 22... Rxd1+ {[%clk 0:02:13.4]} 23. Bxd1 {[%clk
0:01:43.8]} 23... a5 {[%clk 0:02:15]} 24. Bh5 {[%clk 0:01:42.8]} 24... Kd7
{[%clk 0:02:09.5]} 25. Bxg6 {[%clk 0:01:42.5]} 25... fxg6 {[%clk 0:02:11.4]} 26.
Kf1 {[%clk 0:01:25.1]} 26... Kc6 {[%clk 0:02:12.4]} 27. Ke2 {[%clk 0:01:26.5]}
27... Kd5 {[%clk 0:02:13]} 28. Kd3 {[%clk 0:01:27.4]} 28... b5 {[%clk
0:02:10.9]} 29. b3 {[%clk 0:01:28.3]} 29... Ba3 {[%clk 0:02:04.1]} 30. Bf4
{[%clk 0:01:23.6]} 30... Be7 {[%clk 0:01:53.6]} 31. c4+ {[%clk 0:01:22.4]} 31...
bxc4+ {[%clk 0:01:54.7]} 32. bxc4+ {[%clk 0:01:23.3]} 32... Kc5 {[%clk
0:01:55.8]} 33. Kc3 {[%clk 0:01:14.5]} 33... a4 {[%clk 0:01:53.6]} 34. Be3+
{[%clk 0:01:14.9]} 34... Kc6 {[%clk 0:01:54.4]} 35. Kd3 {[%clk 0:01:13.4]} 35...
Bb4 {[%clk 0:01:48.5]} 36. Ke4 {[%clk 0:01:12.5]} 36... Be7 {[%clk 0:01:49.1]}
37. g3 {[%clk 0:01:11.9]} 37... Kd7 {[%clk 0:01:49.5]} 38. Kd3 {[%clk
0:01:07.9]} 38... Kc6 {[%clk 0:01:50.4]} 39. Kc3 {[%clk 0:01:05.7]} 39... Bf8
{[%clk 0:01:31]} 40. Bg5 {[%clk 0:00:59.5]} 40... Bc5 {[%clk 0:01:31.6]} 41. f4
{[%clk 0:00:58.4]} 41... Bf2 {[%clk 0:01:29.5]} 42. g4 {[%clk 0:00:57.9]} 42...
Be1+ {[%clk 0:01:30.6]} 43. Kd3 {[%clk 0:00:57.3]} 43... Bb4 {[%clk 0:01:26.3]}
44. Ke4 {[%clk 0:00:47.2]} 44... Bc3 {[%clk 0:01:23.1]} 45. Be7 {[%clk
0:00:45.2]} 45... Kd7 {[%clk 0:01:14.3]} 46. Bf8 {[%clk 0:00:42.7]} 46... g5
{[%clk 0:01:15.1]} 47. f5 {[%clk 0:00:40.4]} 47... Ke8 {[%clk 0:01:11.6]} 48.
Bxg7 {[%clk 0:00:39.7]} 48... Kf7 {[%clk 0:01:12.9]} 49. Bf6 {[%clk 0:00:37.6]}
49... Bd2 {[%clk 0:01:14.2]} 50. Bd8 {[%clk 0:00:36.4]} 50... c6 {[%clk
0:01:14.7]} 51. h4 {[%clk 0:00:36.9]} 51... gxh4 {[%clk 0:01:15.2]} 52. Bxh4
{[%clk 0:00:37.5]} 52... Bc1 {[%clk 0:01:17.1]} 53. g5 {[%clk 0:00:37.9]} 1-0

[Event "*** Titled Tuesday Blitz"]
[Site "Chess.com"]
[Date "2018.05.01"]
[Round "4"]
[White "Msb2"]
[Black "swayamsm"]
[Result "0-1"]
[WhiteElo "2709"]
[BlackElo "2546"]
[TimeControl "180+2"]
[EndTime "13:52:23 PDT"]
[Termination "swayamsm won by checkmate"]

1. d4 {[%clk 0:03:01.9]} 1... Nf6 {[%clk 0:02:53.7]} 2. c4 {[%clk 0:03:02.7]}
2... e6 {[%clk 0:02:53]} 3. g3 {[%clk 0:03:03.7]} 3... c5 {[%clk 0:02:51.7]} 4.
d5 {[%clk 0:03:04.6]} 4... exd5 {[%clk 0:02:52.2]} 5. cxd5 {[%clk 0:03:06.5]}
5... d6 {[%clk 0:02:53.6]} 6. Nc3 {[%clk 0:03:07.8]} 6... g6 {[%clk 0:02:53.7]}
7. Bg2 {[%clk 0:03:09.2]} 7... Bg7 {[%clk 0:02:55.3]} 8. Nf3 {[%clk 0:03:10.9]}
8... O-O {[%clk 0:02:56.8]} 9. O-O {[%clk 0:03:11.4]} 9... Re8 {[%clk
0:02:57.6]} 10. a4 {[%clk 0:03:13.1]} 10... Ne4 {[%clk 0:02:39.6]} 11. Nxe4
{[%clk 0:03:12.5]} 11... Rxe4 {[%clk 0:02:41.5]} 12. Nd2 {[%clk 0:03:14.4]}
12... Rb4 {[%clk 0:02:34.8]} 13. Ra2 {[%clk 0:03:14.6]} 13... Na6 {[%clk
0:02:25.4]} 14. b3 {[%clk 0:03:14.7]} 14... Bg4 {[%clk 0:02:13.1]} 15. Nc4
{[%clk 0:03:12.5]} 15... Qe7 {[%clk 0:02:11.1]} 16. Ba3 {[%clk 0:03:07.3]} 16...
Re8 {[%clk 0:02:07.4]} 17. f3 {[%clk 0:02:49]} 17... Bd7 {[%clk 0:02:02.2]} 18.
e4 {[%clk 0:02:36.8]} 18... h5 {[%clk 0:01:30.8]} 19. h4 {[%clk 0:02:11.7]}
19... g5 {[%clk 0:01:27.9]} 20. hxg5 {[%clk 0:00:53.1]} 20... Qxg5 {[%clk
0:01:29.8]} 21. Kh2 {[%clk 0:00:54.7]} 21... h4 {[%clk 0:01:20.7]} 22. g4 {[%clk
0:00:55.5]} 22... Qf4+ {[%clk 0:01:18]} 23. Kh1 {[%clk 0:00:56.6]} 23... Rxc4
{[%clk 0:01:08.1]} 24. bxc4 {[%clk 0:00:28]} 24... Be5 {[%clk 0:01:08.5]} 25.
Kg1 {[%clk 0:00:22.3]} 25... Qh2+ {[%clk 0:01:04.7]} 26. Kf2 {[%clk 0:00:23.4]}
26... Bd4+ {[%clk 0:01:01.7]} 27. Ke1 {[%clk 0:00:20.5]} 27... Qg3+ {[%clk
0:00:59.8]} 28. Rff2 {[%clk 0:00:21.8]} 28... h3 {[%clk 0:00:41.2]} 29. Bf1
{[%clk 0:00:22.7]} 29... h2 {[%clk 0:00:35]} 30. Bg2 {[%clk 0:00:24.1]} 30...
Bxf2+ {[%clk 0:00:35.3]} 31. Rxf2 {[%clk 0:00:26]} 31... Qxg2 {[%clk 0:00:36.5]}
32. Rxg2 {[%clk 0:00:19.3]} 32... h1=Q+ {[%clk 0:00:37.3]} 33. Kf2 {[%clk
0:00:18]} 33... Qxd1 {[%clk 0:00:37.7]} 34. Bb2 {[%clk 0:00:19.9]} 34... Nb4
{[%clk 0:00:33]} 35. Kg3 {[%clk 0:00:20.5]} 35... Qe1+ {[%clk 0:00:31.3]} 36.
Kh3 {[%clk 0:00:21]} 36... Nd3 {[%clk 0:00:32.3]} 37. Bf6 {[%clk 0:00:22]} 37...
Nf4+ {[%clk 0:00:29.1]} 38. Kh2 {[%clk 0:00:23.3]} 38... Nxg2 {[%clk 0:00:28.3]}
39. Kxg2 {[%clk 0:00:25.2]} 39... Bxg4 {[%clk 0:00:28.1]} 40. e5 {[%clk
0:00:26.6]} 40... Qe2+ {[%clk 0:00:28.3]} 41. Kg3 {[%clk 0:00:27.6]} 41... Qxf3+
{[%clk 0:00:30.2]} 42. Kh4 {[%clk 0:00:29.2]} 42... Rxe5 {[%clk 0:00:28.4]} 43.
Bxe5 {[%clk 0:00:29.9]} 43... dxe5 {[%clk 0:00:30.3]} 44. Kg5 {[%clk 0:00:31]}
44... Bf5 {[%clk 0:00:28.2]} 45. Kh6 {[%clk 0:00:32.9]} 45... Qg4 {[%clk
0:00:28.9]} 46. d6 {[%clk 0:00:33.8]} 46... Qg6# {[%clk 0:00:30.8]} 0-1

[Event "*** Titled Tuesday Blitz"]
[Site "Chess.com"]
[Date "2018.05.01"]
[Round "4"]
[White "FLchessplayer"]
[Black "nau64"]
[Result "0-1"]
[WhiteElo "2025"]
[BlackElo "2140"]
[TimeControl "180+2"]
[EndTime "13:52:33 PDT"]
[Termination "nau64 won by resignation"]

1. e4 {[%clk 0:03:01.9]} 1... c5 {[%clk 0:03:00]} 2. Nf3 {[%clk 0:03:02.3]} 2...
Nc6 {[%clk 0:02:59.2]} 3. d4 {[%clk 0:03:01.9]} 3... cxd4 {[%clk 0:03:00.1]} 4.
Nxd4 {[%clk 0:03:03]} 4... Qb6 {[%clk 0:03:00.7]} 5. Nb3 {[%clk 0:03:03]} 5...
Nf6 {[%clk 0:03:00.9]} 6. Be3 {[%clk 0:03:03.8]} 6... Qb4+ {[%clk 0:03:00.3]} 7.
N1d2 {[%clk 0:02:59.6]} 7... Nxe4 {[%clk 0:03:00.7]} 8. a3 {[%clk 0:02:59.7]}
8... Qa4 {[%clk 0:02:51.8]} 9. Bd3 {[%clk 0:02:51.3]} 9... Nxd2 {[%clk
0:02:41.2]} 10. Qxd2 {[%clk 0:02:51.4]} 10... e6 {[%clk 0:02:38.8]} 11. O-O
{[%clk 0:02:47.1]} 11... d6 {[%clk 0:02:37.5]} 12. Qe2 {[%clk 0:02:45.6]} 12...
a6 {[%clk 0:02:36.2]} 13. f4 {[%clk 0:02:14]} 13... Be7 {[%clk 0:02:29.9]} 14.
f5 {[%clk 0:02:13.4]} 14... exf5 {[%clk 0:02:27.2]} 15. Bxf5 {[%clk 0:01:48.3]}
15... Bxf5 {[%clk 0:02:07.7]} 16. Rxf5 {[%clk 0:01:48.7]} 16... O-O {[%clk
0:02:08.5]} 17. Raf1 {[%clk 0:01:47.7]} 17... Qe4 {[%clk 0:01:52.8]} 18. R1f4
{[%clk 0:01:40.2]} 18... Qe6 {[%clk 0:01:52.6]} 19. Qf2 {[%clk 0:01:32.6]} 19...
Rae8 {[%clk 0:01:22.7]} 20. Bb6 {[%clk 0:01:25.6]} 20... g6 {[%clk 0:01:17]} 21.
Qg3 {[%clk 0:00:56.4]} 21... Bd8 {[%clk 0:00:56.1]} 22. Bxd8 {[%clk 0:00:54.1]}
22... Rxd8 {[%clk 0:00:46.3]} 23. Rf6 {[%clk 0:00:48.7]} 23... Qe5 {[%clk
0:00:39.2]} 24. c3 {[%clk 0:00:48.4]} 24... Rde8 {[%clk 0:00:27.2]} 25. h3
{[%clk 0:00:48.3]} 25... Re6 {[%clk 0:00:19.2]} 26. Rxe6 {[%clk 0:00:42.5]}
26... fxe6 {[%clk 0:00:19.6]} 27. Rxf8+ {[%clk 0:00:41.9]} 27... Kxf8 {[%clk
0:00:21.4]} 28. Qf3+ {[%clk 0:00:40.9]} 28... Kg7 {[%clk 0:00:22.1]} 29. Kf1
{[%clk 0:00:37.6]} 29... Qf5 {[%clk 0:00:20.5]} 30. Ke2 {[%clk 0:00:37.7]} 30...
Qxf3+ {[%clk 0:00:21]} 31. Kxf3 {[%clk 0:00:38.9]} 31... Kf6 {[%clk 0:00:22.9]}
32. Ke4 {[%clk 0:00:39.7]} 32... d5+ {[%clk 0:00:23.1]} 33. Kd3 {[%clk
0:00:40.5]} 33... b6 {[%clk 0:00:23.4]} 34. a4 {[%clk 0:00:38.3]} 34... e5
{[%clk 0:00:22.9]} 35. Ke3 {[%clk 0:00:33.6]} 35... h5 {[%clk 0:00:20.6]} 36.
Kf3 {[%clk 0:00:33.7]} 36... Kf5 {[%clk 0:00:21.2]} 37. g4+ {[%clk 0:00:33]}
37... hxg4+ {[%clk 0:00:23]} 38. hxg4+ {[%clk 0:00:33.4]} 38... Kg5 {[%clk
0:00:23.6]} 39. Kg3 {[%clk 0:00:29]} 39... e4 {[%clk 0:00:23.7]} 40. Nd2 {[%clk
0:00:25.8]} 40... Ne5 {[%clk 0:00:23.7]} 41. Nf1 {[%clk 0:00:24.5]} 41... Nxg4
{[%clk 0:00:23.8]} 42. a5 {[%clk 0:00:24.9]} 42... bxa5 {[%clk 0:00:23.8]} 43.
Nd2 {[%clk 0:00:25.8]} 43... Ne5 {[%clk 0:00:23]} 44. Nb3 {[%clk 0:00:25.8]}
44... Nc4 {[%clk 0:00:23.4]} 45. Nxa5 {[%clk 0:00:25.6]} 45... Nxa5 {[%clk
0:00:23.8]} 0-1

[Event "*** Titled Tuesday Blitz"]
[Site "Chess.com"]
[Date "2018.05.01"]
[Round "4"]
[White "Cryptochess"]
[Black "cukus"]
[Result "0-1"]
[WhiteElo "2402"]
[BlackElo "2419"]
[TimeControl "180+2"]
[EndTime "13:52:41 PDT"]
[Termination "cukus won by resignation"]

1. e4 {[%clk 0:03:00.8]} 1... g6 {[%clk 0:02:57.3]} 2. d4 {[%clk 0:03:01.5]}
2... Bg7 {[%clk 0:02:58.4]} 3. Nc3 {[%clk 0:03:02.5]} 3... d5 {[%clk 0:02:59.3]}
4. exd5 {[%clk 0:03:01.2]} 4... Nf6 {[%clk 0:02:59.4]} 5. Bb5+ {[%clk
0:02:44.4]} 5... Nbd7 {[%clk 0:02:59]} 6. Nf3 {[%clk 0:02:44.5]} 6... O-O {[%clk
0:03:00]} 7. O-O {[%clk 0:02:43.4]} 7... Nb6 {[%clk 0:03:01]} 8. Ne5 {[%clk
0:02:43.9]} 8... Nbxd5 {[%clk 0:02:58.5]} 9. Nxd5 {[%clk 0:02:44.2]} 9... Nxd5
{[%clk 0:02:59.5]} 10. Re1 {[%clk 0:02:43.6]} 10... Bf5 {[%clk 0:02:50.1]} 11.
c4 {[%clk 0:02:26.7]} 11... Nf6 {[%clk 0:02:25.9]} 12. Bg5 {[%clk 0:02:24.4]}
12... h6 {[%clk 0:02:17.6]} 13. Bh4 {[%clk 0:02:24.8]} 13... g5 {[%clk
0:02:17.7]} 14. Bg3 {[%clk 0:02:25.6]} 14... e6 {[%clk 0:02:11.3]} 15. Ba4
{[%clk 0:02:10.3]} 15... Ne4 {[%clk 0:02:02.4]} 16. Bc2 {[%clk 0:02:03.8]} 16...
Nxg3 {[%clk 0:02:02.8]} 17. hxg3 {[%clk 0:02:04.8]} 17... Bxc2 {[%clk
0:02:03.2]} 18. Qxc2 {[%clk 0:02:05.8]} 18... Qxd4 {[%clk 0:01:59.8]} 19. Rad1
{[%clk 0:02:06.9]} 19... Bxe5 {[%clk 0:01:51.6]} 20. Rxd4 {[%clk 0:02:04.8]}
20... Bxd4 {[%clk 0:01:53.5]} 21. Qe4 {[%clk 0:01:53.8]} 21... c5 {[%clk
0:01:44.3]} 22. b4 {[%clk 0:01:47.2]} 22... b6 {[%clk 0:01:42.3]} 23. Kf1 {[%clk
0:01:40.3]} 23... Rad8 {[%clk 0:01:32.2]} 24. Rd1 {[%clk 0:01:40.5]} 24... e5
{[%clk 0:01:23]} 25. g4 {[%clk 0:01:39.2]} 25... cxb4 {[%clk 0:01:18.8]} 26. Ke2
{[%clk 0:01:38.7]} 26... Rd6 {[%clk 0:01:13.2]} 27. f4 {[%clk 0:01:33.3]} 27...
gxf4 {[%clk 0:00:41.1]} 28. g5 {[%clk 0:01:33.8]} 28... hxg5 {[%clk 0:00:38]}
29. Rh1 {[%clk 0:01:34.1]} 29... Rg6 {[%clk 0:00:33.1]} 30. Qf5 {[%clk
0:01:11.8]} 30... Kg7 {[%clk 0:00:24.5]} 31. Rh5 {[%clk 0:01:09.3]} 31... g4
{[%clk 0:00:20]} 32. Rh4 {[%clk 0:01:01.4]} 32... f3+ {[%clk 0:00:19]} 33. gxf3
{[%clk 0:01:00.2]} 33... g3 {[%clk 0:00:19.2]} 34. Rxd4 {[%clk 0:00:17.3]} 34...
exd4 {[%clk 0:00:19]} 35. Qe5+ {[%clk 0:00:18.5]} 35... f6 {[%clk 0:00:19.1]}
36. Qxd4 {[%clk 0:00:19.5]} 36... g2 {[%clk 0:00:19.3]} 37. Qg1 {[%clk
0:00:20.6]} 37... Rh8 {[%clk 0:00:20.4]} 38. Qd1 {[%clk 0:00:15.1]} 38... Re8+
{[%clk 0:00:14.9]} 39. Kf2 {[%clk 0:00:13]} 39... g1=Q+ {[%clk 0:00:15.6]} 0-1

[Event "*** Titled Tuesday Blitz"]
[Site "Chess.com"]
[Date "2018.05.01"]
[Round "4"]
[White "toad"]
[Black "Arystanner23"]
[Result "0-1"]
[WhiteElo "2201"]
[BlackElo "2399"]
[TimeControl "180+2"]
[EndTime "13:52:47 PDT"]
[Termination "Arystanner23 won by checkmate"]

1. d4 {[%clk 0:03:01.9]} 1... Nf6 {[%clk 0:03:00.5]} 2. c4 {[%clk 0:03:03.2]}
2... e6 {[%clk 0:03:02.4]} 3. g3 {[%clk 0:03:04.2]} 3... d5 {[%clk 0:03:02.6]}
4. Nf3 {[%clk 0:03:04.7]} 4... dxc4 {[%clk 0:03:03.2]} 5. Bg2 {[%clk 0:03:05.7]}
5... Bd7 {[%clk 0:03:04.8]} 6. Ne5 {[%clk 0:03:05.4]} 6... Bc6 {[%clk
0:03:06.1]} 7. Nxc6 {[%clk 0:03:04.6]} 7... Nxc6 {[%clk 0:03:07.4]} 8. O-O
{[%clk 0:03:04.9]} 8... Qd7 {[%clk 0:03:06.7]} 9. Na3 {[%clk 0:03:01.4]} 9...
O-O-O {[%clk 0:03:03.8]} 10. e3 {[%clk 0:03:01.7]} 10... e5 {[%clk 0:03:02.8]}
11. Qa4 {[%clk 0:02:47.1]} 11... exd4 {[%clk 0:03:01.6]} 12. Bxc6 {[%clk
0:02:44.8]} 12... Qxc6 {[%clk 0:03:01.8]} 13. Qxc6 {[%clk 0:02:44.9]} 13... bxc6
{[%clk 0:03:02.2]} 14. Nxc4 {[%clk 0:02:45.4]} 14... d3 {[%clk 0:02:59]} 15. Bd2
{[%clk 0:02:27.2]} 15... Ne4 {[%clk 0:03:00]} 16. Rfd1 {[%clk 0:02:24.1]} 16...
Nxd2 {[%clk 0:02:59.9]} 17. Rxd2 {[%clk 0:02:24.8]} 17... Bb4 {[%clk 0:03:00.8]}
18. Rdd1 {[%clk 0:02:24.5]} 18... Rhe8 {[%clk 0:02:58.7]} 19. a3 {[%clk
0:02:24.9]} 19... Be7 {[%clk 0:02:57.5]} 20. Rd2 {[%clk 0:02:25.8]} 20... Rd5
{[%clk 0:02:54.2]} 21. Rad1 {[%clk 0:02:26.2]} 21... Red8 {[%clk 0:02:54.8]} 22.
b4 {[%clk 0:02:09.7]} 22... Bf6 {[%clk 0:02:54.1]} 23. Na5 {[%clk 0:02:10.1]}
23... c5 {[%clk 0:02:38]} 24. Rc1 {[%clk 0:01:53.6]} 24... cxb4 {[%clk
0:02:31.9]} 25. axb4 {[%clk 0:01:49.5]} 25... R8d6 {[%clk 0:02:29.8]} 26. Nb3
{[%clk 0:00:41.5]} 26... Rb5 {[%clk 0:02:24.2]} 27. Rc4 {[%clk 0:00:39.9]} 27...
Rdb6 {[%clk 0:02:07.6]} 28. Nd4 {[%clk 0:00:40.2]} 28... Rxb4 {[%clk 0:02:03.9]}
29. Rxb4 {[%clk 0:00:40.5]} 29... Rxb4 {[%clk 0:02:05.8]} 30. Rxd3 {[%clk
0:00:38.1]} 30... c5 {[%clk 0:02:07]} 31. Nf5 {[%clk 0:00:35]} 31... c4 {[%clk
0:02:05.1]} 32. Rd5 {[%clk 0:00:30.2]} 32... c3 {[%clk 0:02:04.9]} 33. Rc5+
{[%clk 0:00:17.4]} 33... Kb7 {[%clk 0:02:02.3]} 34. Nd4 {[%clk 0:00:10.9]} 34...
Bxd4 {[%clk 0:01:46.6]} 35. exd4 {[%clk 0:00:12.8]} 35... Rb3 {[%clk 0:01:47.9]}
36. d5 {[%clk 0:00:13.2]} 36... a5 {[%clk 0:01:45.6]} 37. d6 {[%clk 0:00:13.8]}
37... Rb1+ {[%clk 0:01:44.8]} 38. Kg2 {[%clk 0:00:14.5]} 38... Rd1 {[%clk
0:01:46]} 39. Rxc3 {[%clk 0:00:12.8]} 39... Rxd6 {[%clk 0:01:47]} 40. h4 {[%clk
0:00:12.5]} 40... Kb6 {[%clk 0:01:48.3]} 41. h5 {[%clk 0:00:12.4]} 41... Kb5
{[%clk 0:01:49.1]} 42. g4 {[%clk 0:00:13.5]} 42... Kb4 {[%clk 0:01:50.4]} 43.
Rc8 {[%clk 0:00:14.4]} 43... a4 {[%clk 0:01:51.4]} 44. Ra8 {[%clk 0:00:07.8]}
44... a3 {[%clk 0:01:51.8]} 45. Kg3 {[%clk 0:00:08.6]} 45... Kb3 {[%clk
0:01:46.5]} 46. f4 {[%clk 0:00:08.7]} 46... a2 {[%clk 0:01:46.4]} 47. Kh4 {[%clk
0:00:07.6]} 47... Kb2 {[%clk 0:01:42.9]} 48. Rb8+ {[%clk 0:00:07.7]} 48... Kc2
{[%clk 0:01:43.9]} 49. Ra8 {[%clk 0:00:08.8]} 49... Kb1 {[%clk 0:01:40.1]} 50.
Rb8+ {[%clk 0:00:09.8]} 50... Kc1 {[%clk 0:01:41.1]} 51. Ra8 {[%clk 0:00:11]}
51... Rd2 {[%clk 0:01:40.1]} 52. h6 {[%clk 0:00:11.4]} 52... gxh6 {[%clk
0:01:40.2]} 53. f5 {[%clk 0:00:11.5]} 53... Kb1 {[%clk 0:01:38.7]} 54. Rb8+
{[%clk 0:00:05.4]} 54... Rb2 {[%clk 0:01:39.1]} 55. Ra8 {[%clk 0:00:02.8]} 55...
a1=Q {[%clk 0:01:40]} 56. Rxa1+ {[%clk 0:00:04.5]} 56... Kxa1 {[%clk 0:01:41.9]}
57. f6 {[%clk 0:00:05.8]} 57... Rb6 {[%clk 0:01:41.7]} 58. g5 {[%clk 0:00:05.2]}
58... hxg5+ {[%clk 0:01:42]} 59. Kg4 {[%clk 0:00:06.7]} 59... Rxf6 {[%clk
0:01:40.5]} 60. Kh5 {[%clk 0:00:08.6]} 60... Rg6 {[%clk 0:01:42.3]} 61. Kg4
{[%clk 0:00:09.6]} 61... h5+ {[%clk 0:01:42.2]} 62. Kxh5 {[%clk 0:00:11.5]}
62... g4 {[%clk 0:01:44]} 63. Kh4 {[%clk 0:00:12.9]} 63... g3 {[%clk 0:01:45.6]}
64. Kh3 {[%clk 0:00:12.4]} 64... g2 {[%clk 0:01:47.5]} 65. Kh4 {[%clk
0:00:13.4]} 65... g1=Q {[%clk 0:01:49]} 66. Kh5 {[%clk 0:00:15.3]} 66... Qh1#
{[%clk 0:01:49.3]} 0-1